[Event "Titled Tuesday Blitz May 24 Early 2022"]
[White "Decuigniere, Tom"]
[Black "Nugumanov, Bakhtiyar"]
[WhiteFideId "26093820"]
[BlackFideId "13701797"]
[WhiteElo "1997"]
[BlackElo "2262"]
[Result "0-1"]
[Round "06"]
[TimeControl "180+1"]
[Date "2022.05.25"]
[WhiteClock "0:00:01"]
[BlackClock "0:01:05"]

1. e4 {[%clk 0:02:57]}  c6 {[%clk 0:02:59]} 2. d4 {[%clk 0:02:57]}  d5 {[%clk 0:03:00]} 3. exd5 {[%clk 0:02:56]}  cxd5 {[%clk 0:03:01]} 4. Nf3 {[%clk 0:02:56]}  Nf6 {[%clk 0:03:00]} 5. Bf4 {[%clk 0:02:53]}  Bg4 {[%clk 0:02:57]} 6. Be2 {[%clk 0:02:46]}  e6 {[%clk 0:02:42]} 7. O-O {[%clk 0:02:44]}  Nc6 {[%clk 0:02:40]} 8. c3 {[%clk 0:02:44]}  Bd6 {[%clk 0:02:38]} 9. Ne5 {[%clk 0:02:24]}  Bxe2 {[%clk 0:02:18]} 10. Qxe2 {[%clk 0:02:25]}  O-O {[%clk 0:02:18]} 11. Nd2 {[%clk 0:02:20]}  Rc8 {[%clk 0:02:08]} 12. Rfe1 {[%clk 0:01:59]}  Qc7 {[%clk 0:02:07]} 13. Bg3 {[%clk 0:01:53]}  Bxe5 {[%clk 0:01:55]} 14. dxe5 {[%clk 0:01:54]}  Nd7 {[%clk 0:01:55]} 15. f4 {[%clk 0:01:51]}  Qb6+ {[%clk 0:01:50]} 16. Bf2 {[%clk 0:01:45]}  Qxb2 {[%clk 0:01:50]} 17. Rab1 {[%clk 0:01:10]}  Qxc3 {[%clk 0:01:50]} 18. Rxb7 {[%clk 0:01:07]}  Nc5 {[%clk 0:01:49]} 19. Rbb1 {[%clk 0:00:46]}  Nd4 {[%clk 0:01:48]} 20. Qe3 {[%clk 0:00:23]}  Qxe3 {[%clk 0:01:45]} 21. Bxe3 {[%clk 0:00:24]}  Nc2 {[%clk 0:01:44]} 22. Bxc5 {[%clk 0:00:20]}  Rxc5 {[%clk 0:01:42]} 23. Rec1 {[%clk 0:00:20]}  Rfc8 {[%clk 0:01:40]} 24. Rb7 {[%clk 0:00:15]}  h6 {[%clk 0:01:33]} 25. Nb3 {[%clk 0:00:14]}  Rc4 {[%clk 0:01:31]} 26. Rxa7 {[%clk 0:00:11]}  Ne3 {[%clk 0:01:23]} 27. Rxc4 {[%clk 0:00:11]}  Rxc4 {[%clk 0:01:24]} 28. Ra8+ {[%clk 0:00:09]}  Kh7 {[%clk 0:01:24]} 29. Kf2 {[%clk 0:00:10]}  Nd1+ {[%clk 0:01:20]} 30. Kg3 {[%clk 0:00:09]}  Rc3+ {[%clk 0:01:16]} 31. Kg4 {[%clk 0:00:08]}  Rc2 {[%clk 0:01:16]} 32. g3 {[%clk 0:00:06]}  Rxh2 {[%clk 0:01:13]} 33. Nd4 {[%clk 0:00:05]}  Ne3+ {[%clk 0:01:07]} 34. Kf3 {[%clk 0:00:03]}  Nc4 {[%clk 0:01:08]} 35. a4 {[%clk 0:00:02]}  Ra2 {[%clk 0:01:09]} 36. Nb5 {[%clk 0:00:01]}  Kg6 {[%clk 0:01:05]} 37. Kg4 {[%clk 0:00:01]}  h5+ {[%clk 0:01:05]} 0-1


[Site "https://www.chess.com"]

[Event "Titled Tuesday Blitz May 24 Early 2022"]
[White "Djokic, Mihailo"]
[Black "Jian, Alex"]
[WhiteFideId "976440"]
[BlackFideId "30901022"]
[WhiteElo "2202"]
[BlackElo "2111"]
[Result "1-0"]
[Round "06"]
[TimeControl "180+1"]
[Date "2022.05.25"]
[WhiteClock "0:00:09"]
[BlackClock "0:00:08"]

1. e4 {[%clk 0:03:00]}  c5 {[%clk 0:02:59]} 2. Nf3 {[%clk 0:03:00]}  e6 {[%clk 0:02:59]} 3. d4 {[%clk 0:03:00]}  cxd4 {[%clk 0:02:59]} 4. Nxd4 {[%clk 0:03:01]}  a6 {[%clk 0:03:00]} 5. Be2 {[%clk 0:03:01]}  Nf6 {[%clk 0:02:57]} 6. Nc3 {[%clk 0:03:01]}  d6 {[%clk 0:02:57]} 7. O-O {[%clk 0:03:01]}  Be7 {[%clk 0:02:56]} 8. f4 {[%clk 0:03:02]}  O-O {[%clk 0:02:55]} 9. Kh1 {[%clk 0:03:02]}  Nc6 {[%clk 0:02:55]} 10. Be3 {[%clk 0:03:03]}  Qc7 {[%clk 0:02:46]} 11. Qe1 {[%clk 0:03:02]}  Nxd4 {[%clk 0:02:45]} 12. Bxd4 {[%clk 0:03:00]}  b5 {[%clk 0:02:46]} 13. a3 {[%clk 0:02:59]}  Bb7 {[%clk 0:02:44]} 14. Qg3 {[%clk 0:03:00]}  g6 {[%clk 0:02:37]} 15. Bf3 {[%clk 0:02:13]}  Nd7 {[%clk 0:01:58]} 16. f5 {[%clk 0:02:08]}  Ne5 {[%clk 0:01:51]} 17. Bxe5 {[%clk 0:02:03]}  dxe5 {[%clk 0:01:50]} 18. fxe6 {[%clk 0:02:03]}  fxe6 {[%clk 0:01:49]} 19. Bg4 {[%clk 0:02:03]}  Qb6 {[%clk 0:01:23]} 20. Qh3 {[%clk 0:01:57]}  Rxf1+ {[%clk 0:01:08]} 21. Rxf1 {[%clk 0:01:55]}  Rf8 {[%clk 0:01:09]} 22. Bxe6+ {[%clk 0:01:54]}  Kg7 {[%clk 0:01:06]} 23. Rxf8 {[%clk 0:01:53]}  Bxf8 {[%clk 0:01:03]} 24. Bd5 {[%clk 0:01:53]}  Qf2 {[%clk 0:00:39]} 25. g3 {[%clk 0:01:28]}  Bc8 {[%clk 0:00:17]} 26. Qg2 {[%clk 0:01:18]}  Qe1+ {[%clk 0:00:17]} 27. Qg1 {[%clk 0:01:18]}  Qd2 {[%clk 0:00:15]} 28. Qd1 {[%clk 0:01:13]}  Qf2 {[%clk 0:00:12]} 29. Qe2 {[%clk 0:01:09]}  Qd4 {[%clk 0:00:06]} 30. Qd3 {[%clk 0:00:40]}  Qf2 {[%clk 0:00:05]} 31. Nd1 {[%clk 0:00:36]}  Qe1+ {[%clk 0:00:05]} 32. Kg2 {[%clk 0:00:36]}  Bc5 {[%clk 0:00:05]} 33. b4 {[%clk 0:00:15]}  Qg1+ {[%clk 0:00:05]} 34. Kf3 {[%clk 0:00:15]}  Bd4 {[%clk 0:00:03]} 35. c3 {[%clk 0:00:09]}  Qh1+ {[%clk 0:00:04]} 36. Ke2 {[%clk 0:00:09]}  Qg2+ {[%clk 0:00:04]} 37. Ke1 {[%clk 0:00:09]}  Qh1+ {[%clk 0:00:04]} 38. Kd2 {[%clk 0:00:10]}  Qxh2+ {[%clk 0:00:04]} 39. Kc1 {[%clk 0:00:10]}  Bg1 {[%clk 0:00:03]} 40. Bb3 {[%clk 0:00:06]}  Bg4 {[%clk 0:00:03]} 41. Bc2 {[%clk 0:00:04]}  Qg2 {[%clk 0:00:03]} 42. c4 {[%clk 0:00:03]}  Qf3 {[%clk 0:00:04]} 43. Qxf3 {[%clk 0:00:03]}  Bxf3 {[%clk 0:00:04]} 44. c5 {[%clk 0:00:03]}  h5 {[%clk 0:00:04]} 45. Nc3 {[%clk 0:00:04]}  g5 {[%clk 0:00:03]} 46. c6 {[%clk 0:00:04]}  Bb6 {[%clk 0:00:03]} 47. Nd5 {[%clk 0:00:04]}  Bd8 {[%clk 0:00:03]} 48. c7 {[%clk 0:00:05]}  Bxc7 {[%clk 0:00:04]} 49. Nxc7 {[%clk 0:00:06]}  h4 {[%clk 0:00:05]} 50. gxh4 {[%clk 0:00:06]}  gxh4 {[%clk 0:00:06]} 51. Ne6+ {[%clk 0:00:05]}  Kf6 {[%clk 0:00:05]} 52. Nc5 {[%clk 0:00:04]}  h3 {[%clk 0:00:05]} 53. Nd3 {[%clk 0:00:04]}  Bxe4 {[%clk 0:00:04]} 54. Nf2 {[%clk 0:00:04]}  Bg2 {[%clk 0:00:04]} 55. Kd2 {[%clk 0:00:03]}  h2 {[%clk 0:00:04]} 56. Ng4+ {[%clk 0:00:03]}  Kg5 {[%clk 0:00:02]} 57. Nxh2 {[%clk 0:00:04]}  Bd5 {[%clk 0:00:03]} 58. Bd1 {[%clk 0:00:04]}  Kf4 {[%clk 0:00:03]} 59. Nf1 {[%clk 0:00:04]}  e4 {[%clk 0:00:03]} 60. Ne3 {[%clk 0:00:05]}  Bc6 {[%clk 0:00:03]} 61. Bc2 {[%clk 0:00:04]}  Ke5 {[%clk 0:00:03]} 62. Kc3 {[%clk 0:00:04]}  Bb7 {[%clk 0:00:04]} 63. Nd1 {[%clk 0:00:04]}  Kf4 {[%clk 0:00:04]} 64. Kd4 {[%clk 0:00:04]}  Ba8 {[%clk 0:00:03]} 65. Ne3 {[%clk 0:00:05]}  Bb7 {[%clk 0:00:03]} 66. Bb3 {[%clk 0:00:05]}  Ba8 {[%clk 0:00:03]} 67. Be6 {[%clk 0:00:03]}  Kf3 {[%clk 0:00:03]} 68. Bd7 {[%clk 0:00:02]}  Kf4 {[%clk 0:00:03]} 69. Be6 {[%clk 0:00:03]}  Kf3 {[%clk 0:00:03]} 70. Bd5 {[%clk 0:00:03]}  Bxd5 {[%clk 0:00:02]} 71. Nxd5 {[%clk 0:00:04]}  Ke2 {[%clk 0:00:02]} 72. Kxe4 {[%clk 0:00:04]}  Kd2 {[%clk 0:00:03]} 73. Kd4 {[%clk 0:00:04]}  Kc2 {[%clk 0:00:03]} 74. Nc7 {[%clk 0:00:02]}  Kb3 {[%clk 0:00:04]} 75. Nxa6 {[%clk 0:00:02]}  Kxa3 {[%clk 0:00:05]} 76. Kc5 {[%clk 0:00:03]}  Ka4 {[%clk 0:00:05]} 77. Kb6 {[%clk 0:00:04]}  Kb3 {[%clk 0:00:05]} 78. Kxb5 {[%clk 0:00:05]}  Ka3 {[%clk 0:00:05]} 79. Nc5 {[%clk 0:00:05]}  Ka2 {[%clk 0:00:05]} 80. Ka5 {[%clk 0:00:06]}  Ka3 {[%clk 0:00:06]} 81. b5 {[%clk 0:00:07]}  Ka2 {[%clk 0:00:06]} 82. b6 {[%clk 0:00:08]}  Ka3 {[%clk 0:00:07]} 83. b7 {[%clk 0:00:09]}  Ka2 {[%clk 0:00:07]} 84. b8=Q {[%clk 0:00:09]}  Ka3 {[%clk 0:00:08]} 85. Qb3# {[%clk 0:00:09]} 1-0


[Site "https://www.chess.com"]

[Event "Titled Tuesday Blitz May 24 Early 2022"]
[White "Dmitrenko, Viktor"]
[Black "Gallego Alcaraz, Andres Felipe"]
[WhiteFideId "14110270"]
[BlackFideId "4402669"]
[WhiteElo "2218"]
[BlackElo "2340"]
[Result "1-0"]
[Round "06"]
[TimeControl "180+1"]
[Date "2022.05.25"]
[WhiteClock "0:00:19"]
[BlackClock "0:00:02"]

1. d4 {[%clk 0:02:57]}  f5 {[%clk 0:03:00]} 2. Nf3 {[%clk 0:02:55]}  Nf6 {[%clk 0:03:00]} 3. g3 {[%clk 0:02:56]}  g6 {[%clk 0:03:01]} 4. Bg2 {[%clk 0:02:56]}  Bg7 {[%clk 0:03:01]} 5. c3 {[%clk 0:02:56]}  d6 {[%clk 0:02:57]} 6. Qb3 {[%clk 0:02:55]}  e6 {[%clk 0:02:53]} 7. O-O {[%clk 0:02:51]}  Qe7 {[%clk 0:02:50]} 8. a4 {[%clk 0:02:52]}  O-O {[%clk 0:02:49]} 9. a5 {[%clk 0:02:19]}  a6 {[%clk 0:02:45]} 10. Bg5 {[%clk 0:02:07]}  Nbd7 {[%clk 0:02:42]} 11. Na3 {[%clk 0:01:59]}  h6 {[%clk 0:02:41]} 12. Bc1 {[%clk 0:01:48]}  Kh7 {[%clk 0:02:41]} 13. Nc4 {[%clk 0:01:42]}  e5 {[%clk 0:02:38]} 14. dxe5 {[%clk 0:01:37]}  dxe5 {[%clk 0:02:39]} 15. Qa3 {[%clk 0:01:37]}  Qxa3 {[%clk 0:02:34]} 16. Rxa3 {[%clk 0:01:34]}  e4 {[%clk 0:02:34]} 17. Nd4 {[%clk 0:01:28]}  Nc5 {[%clk 0:02:33]} 18. Rd1 {[%clk 0:01:26]}  Rd8 {[%clk 0:02:31]} 19. Bf4 {[%clk 0:01:24]}  Ne6 {[%clk 0:02:28]} 20. Be5 {[%clk 0:01:22]}  c5 {[%clk 0:02:26]} 21. Nb6 {[%clk 0:01:15]}  Ra7 {[%clk 0:01:05]} 22. Bb8 {[%clk 0:01:13]}  cxd4 {[%clk 0:00:56]} 23. Bxa7 {[%clk 0:01:13]}  Nc7 {[%clk 0:00:26]} 24. Nxc8 {[%clk 0:01:03]}  Rxc8 {[%clk 0:00:21]} 25. Bxd4 {[%clk 0:01:02]}  Nb5 {[%clk 0:00:22]} 26. Raa1 {[%clk 0:00:59]}  Nxd4 {[%clk 0:00:22]} 27. Rxd4 {[%clk 0:01:00]}  h5 {[%clk 0:00:19]} 28. Rd6 {[%clk 0:00:54]}  h4 {[%clk 0:00:19]} 29. Rad1 {[%clk 0:00:47]}  Rc7 {[%clk 0:00:19]} 30. f3 {[%clk 0:00:41]}  hxg3 {[%clk 0:00:18]} 31. hxg3 {[%clk 0:00:40]}  e3 {[%clk 0:00:18]} 32. f4 {[%clk 0:00:37]}  Nh5 {[%clk 0:00:18]} 33. Kh2 {[%clk 0:00:34]}  g5 {[%clk 0:00:18]} 34. Bf3 {[%clk 0:00:30]}  g4 {[%clk 0:00:18]} 35. Bd5 {[%clk 0:00:29]}  Rc5 {[%clk 0:00:13]} 36. Bxb7 {[%clk 0:00:26]}  Rb5 {[%clk 0:00:12]} 37. Bxa6 {[%clk 0:00:25]}  Rxb2 {[%clk 0:00:12]} 38. Bd3 {[%clk 0:00:25]}  Ra2 {[%clk 0:00:11]} 39. a6 {[%clk 0:00:24]}  Bf8 {[%clk 0:00:10]} 40. Bxf5+ {[%clk 0:00:23]}  Kg7 {[%clk 0:00:09]} 41. Rc6 {[%clk 0:00:22]}  Rxe2+ {[%clk 0:00:07]} 42. Kg1 {[%clk 0:00:20]}  Rd2 {[%clk 0:00:04]} 43. Bxg4 {[%clk 0:00:19]}  Nxg3 {[%clk 0:00:01]} 44. Rxd2 {[%clk 0:00:19]}  exd2 {[%clk 0:00:02]} 45. a7 {[%clk 0:00:19]} 1-0


[Site "https://www.chess.com"]

[Event "Titled Tuesday Blitz May 24 Early 2022"]
[White "Dubov, Daniil"]
[Black "Nogerbek, Kazybek"]
[WhiteFideId "24126055"]
[BlackFideId "13710427"]
[WhiteElo "2791"]
[BlackElo "2441"]
[Result "1-0"]
[Round "06"]
[TimeControl "180+1"]
[Date "2022.05.24"]
[WhiteClock "0:00:39"]
[BlackClock "0:00:10"]

1. e4 {[%clk 0:02:53]}  c5 {[%clk 0:02:57]} 2. Nc3 {[%clk 0:02:52]}  a6 {[%clk 0:02:56]} 3. Nge2 {[%clk 0:02:51]}  d6 {[%clk 0:02:56]} 4. d4 {[%clk 0:02:51]}  cxd4 {[%clk 0:02:57]} 5. Qxd4 {[%clk 0:02:51]}  Nf6 {[%clk 0:02:58]} 6. b3 {[%clk 0:02:48]}  Nc6 {[%clk 0:02:57]} 7. Qd2 {[%clk 0:02:48]}  g6 {[%clk 0:02:53]} 8. Bb2 {[%clk 0:02:48]}  Bg7 {[%clk 0:02:54]} 9. O-O-O {[%clk 0:02:48]}  O-O {[%clk 0:02:55]} 10. f3 {[%clk 0:02:45]}  Qa5 {[%clk 0:02:54]} 11. Kb1 {[%clk 0:02:44]}  Be6 {[%clk 0:02:48]} 12. h4 {[%clk 0:02:41]}  Rfc8 {[%clk 0:02:48]} 13. h5 {[%clk 0:02:39]}  b5 {[%clk 0:02:15]} 14. Nf4 {[%clk 0:02:27]}  Bd7 {[%clk 0:01:55]} 15. hxg6 {[%clk 0:02:02]}  hxg6 {[%clk 0:01:55]} 16. g4 {[%clk 0:02:02]}  e5 {[%clk 0:01:33]} 17. g5 {[%clk 0:01:45]}  exf4 {[%clk 0:01:29]} 18. gxf6 {[%clk 0:01:43]}  Bxf6 {[%clk 0:01:24]} 19. Qxd6 {[%clk 0:01:16]}  Be6 {[%clk 0:00:36]} 20. Qxf4 {[%clk 0:01:00]}  Bg7 {[%clk 0:00:20]} 21. Nd5 {[%clk 0:00:51]}  Bxd5 {[%clk 0:00:10]} 22. Qf6 {[%clk 0:00:39]} 1-0


[Site "https://www.chess.com"]

[Event "Titled Tuesday Blitz May 24 Early 2022"]
[White "Fernandez Barrera, Victor"]
[Black "Sovetbekova, Nurai"]
[WhiteFideId "2261529"]
[BlackFideId "13801910"]
[WhiteElo "2189"]
[BlackElo "1660"]
[Result "1/2-1/2"]
[Round "06"]
[TimeControl "180+1"]
[Date "2022.05.25"]
[WhiteClock "0:00:49"]
[BlackClock "0:00:12"]

1. Nf3 {[%clk 0:02:55]}  Nf6 {[%clk 0:02:59]} 2. c4 {[%clk 0:02:55]}  g6 {[%clk 0:02:59]} 3. d4 {[%clk 0:02:55]}  Bg7 {[%clk 0:02:59]} 4. e3 {[%clk 0:02:54]}  O-O {[%clk 0:02:59]} 5. Nc3 {[%clk 0:02:55]}  d5 {[%clk 0:02:58]} 6. Qc2 {[%clk 0:02:47]}  c5 {[%clk 0:02:52]} 7. cxd5 {[%clk 0:02:45]}  cxd4 {[%clk 0:02:43]} 8. Nxd4 {[%clk 0:02:44]}  Nxd5 {[%clk 0:02:43]} 9. Bc4 {[%clk 0:02:37]}  Nxc3 {[%clk 0:02:41]} 10. bxc3 {[%clk 0:02:36]}  Nd7 {[%clk 0:02:34]} 11. O-O {[%clk 0:02:33]}  Nc5 {[%clk 0:02:28]} 12. a4 {[%clk 0:02:30]}  Bf5 {[%clk 0:02:26]} 13. Qe2 {[%clk 0:02:27]}  Qc8 {[%clk 0:02:05]} 14. Ba3 {[%clk 0:02:25]}  Ne4 {[%clk 0:02:04]} 15. Bxe7 {[%clk 0:02:16]}  Re8 {[%clk 0:01:48]} 16. Nxf5 {[%clk 0:02:15]}  Qxf5 {[%clk 0:01:45]} 17. Bb4 {[%clk 0:02:13]}  a5 {[%clk 0:01:29]} 18. Ba3 {[%clk 0:02:12]}  Nxc3 {[%clk 0:01:27]} 19. Qf3 {[%clk 0:02:12]}  Qxf3 {[%clk 0:01:18]} 20. gxf3 {[%clk 0:02:13]}  Nxa4 {[%clk 0:01:08]} 21. Rab1 {[%clk 0:02:11]}  Rac8 {[%clk 0:01:01]} 22. Bb5 {[%clk 0:02:09]}  Nc3 {[%clk 0:00:58]} 23. Bxe8 {[%clk 0:02:09]}  Nxb1 {[%clk 0:00:58]} 24. Bxf7+ {[%clk 0:02:09]}  Kxf7 {[%clk 0:00:59]} 25. Rxb1 {[%clk 0:02:09]}  Rc7 {[%clk 0:00:55]} 26. Rb5 {[%clk 0:02:08]}  Bc3 {[%clk 0:00:50]} 27. Bc5 {[%clk 0:02:08]}  a4 {[%clk 0:00:33]} 28. Bb6 {[%clk 0:02:04]}  a3 {[%clk 0:00:23]} 29. Rb3 {[%clk 0:01:53]}  a2 {[%clk 0:00:16]} 30. Ra3 {[%clk 0:01:52]}  Rc6 {[%clk 0:00:16]} 31. Rxa2 {[%clk 0:01:47]}  Rxb6 {[%clk 0:00:16]} 32. Rc2 {[%clk 0:01:48]}  Be5 {[%clk 0:00:16]} 33. f4 {[%clk 0:01:47]}  Bd6 {[%clk 0:00:16]} 34. Rc8 {[%clk 0:01:47]}  Rc6 {[%clk 0:00:15]} 35. Rh8 {[%clk 0:01:44]}  Kg7 {[%clk 0:00:15]} 36. Rd8 {[%clk 0:01:44]}  b5 {[%clk 0:00:12]} 37. Rd7+ {[%clk 0:01:44]}  Kh6 {[%clk 0:00:12]} 38. Rb7 {[%clk 0:01:45]}  b4 {[%clk 0:00:11]} 39. Kg2 {[%clk 0:01:44]}  Rc7 {[%clk 0:00:12]} 40. Rb6 {[%clk 0:01:43]}  Rd7 {[%clk 0:00:12]} 41. Kf3 {[%clk 0:01:42]}  Kg7 {[%clk 0:00:13]} 42. Kg4 {[%clk 0:01:42]}  Kf6 {[%clk 0:00:13]} 43. e4 {[%clk 0:01:40]}  h5+ {[%clk 0:00:13]} 44. Kf3 {[%clk 0:01:11]}  Kg7 {[%clk 0:00:13]} 45. h4 {[%clk 0:01:07]}  Be7 {[%clk 0:00:12]} 46. f5 {[%clk 0:01:05]}  gxf5 {[%clk 0:00:11]} 47. exf5 {[%clk 0:01:03]}  Bxh4 {[%clk 0:00:11]} 48. Rxb4 {[%clk 0:01:02]}  Bf6 {[%clk 0:00:10]} 49. Rb6 {[%clk 0:00:59]}  Re7 {[%clk 0:00:10]} 50. Kf4 {[%clk 0:00:59]}  Rf7 {[%clk 0:00:10]} 51. f3 {[%clk 0:00:57]}  Kh6 {[%clk 0:00:11]} 52. Rc6 {[%clk 0:00:56]}  h4 {[%clk 0:00:11]} 53. Kg4 {[%clk 0:00:56]}  Kh7 {[%clk 0:00:10]} 54. f4 {[%clk 0:00:49]}  Rg7+ {[%clk 0:00:10]} 55. Kh3 {[%clk 0:00:49]}  Rg3+ {[%clk 0:00:11]} 56. Kh2 {[%clk 0:00:49]}  Kg7 {[%clk 0:00:11]} 57. Rc7+ {[%clk 0:00:49]}  Kg8 {[%clk 0:00:11]} 58. Rc6 {[%clk 0:00:49]}  Kf7 {[%clk 0:00:12]} 59. Rc7+ {[%clk 0:00:49]}  Kg8 {[%clk 0:00:12]} 60. Rc6 {[%clk 0:00:49]}  Kg7 {[%clk 0:00:13]} 61. Rc7+ {[%clk 0:00:49]}  Kh6 {[%clk 0:00:12]} 62. Rc6 {[%clk 0:00:49]}  Kg7 {[%clk 0:00:12]} 1/2-1/2


[Site "https://www.chess.com"]

[Event "Titled Tuesday Blitz May 24 Early 2022"]
[White "Fernandez Hernandez, Gerardo"]
[Black "Pacheco Lugo, Alejandro Jose"]
[WhiteFideId "2207400"]
[BlackFideId "3903745"]
[WhiteElo "2216"]
[BlackElo "2146"]
[Result "0-1"]
[Round "06"]
[TimeControl "180+1"]
[Date "2022.05.25"]
[WhiteClock "0:00:03"]
[BlackClock "0:01:49"]

1. e4 {[%clk 0:03:00]}  c5 {[%clk 0:02:59]} 2. d3 {[%clk 0:03:00]}  d5 {[%clk 0:02:58]} 3. Nd2 {[%clk 0:02:59]}  Nf6 {[%clk 0:02:56]} 4. Ngf3 {[%clk 0:02:59]}  e6 {[%clk 0:02:56]} 5. g3 {[%clk 0:02:59]}  Be7 {[%clk 0:02:56]} 6. Bg2 {[%clk 0:02:59]}  O-O {[%clk 0:02:57]} 7. e5 {[%clk 0:02:59]}  Nfd7 {[%clk 0:02:56]} 8. O-O {[%clk 0:03:00]}  Nc6 {[%clk 0:02:57]} 9. Re1 {[%clk 0:03:01]}  Qc7 {[%clk 0:02:58]} 10. Qe2 {[%clk 0:03:01]}  b5 {[%clk 0:02:57]} 11. h4 {[%clk 0:03:01]}  Bb7 {[%clk 0:02:57]} 12. Nf1 {[%clk 0:03:00]}  Rfc8 {[%clk 0:02:56]} 13. Bf4 {[%clk 0:02:54]}  b4 {[%clk 0:02:56]} 14. Ne3 {[%clk 0:02:54]}  Qd8 {[%clk 0:02:55]} 15. Ng4 {[%clk 0:02:24]}  a5 {[%clk 0:02:55]} 16. h5 {[%clk 0:02:23]}  h6 {[%clk 0:02:55]} 17. Qd2 {[%clk 0:02:16]}  Bf8 {[%clk 0:02:55]} 18. Nxh6+ {[%clk 0:01:58]}  gxh6 {[%clk 0:02:56]} 19. Bxh6 {[%clk 0:01:58]}  Bxh6 {[%clk 0:02:56]} 20. Qxh6 {[%clk 0:01:58]}  Qf8 {[%clk 0:02:56]} 21. Qf4 {[%clk 0:01:46]}  Qg7 {[%clk 0:02:55]} 22. h6 {[%clk 0:01:41]}  Qg6 {[%clk 0:02:55]} 23. Nh4 {[%clk 0:01:40]}  Qh7 {[%clk 0:02:55]} 24. g4 {[%clk 0:01:18]}  Nd4 {[%clk 0:02:54]} 25. Rac1 {[%clk 0:01:11]}  Nf8 {[%clk 0:02:41]} 26. c3 {[%clk 0:01:07]}  Nc6 {[%clk 0:02:41]} 27. Qf6 {[%clk 0:01:00]}  Ng6 {[%clk 0:02:37]} 28. Nxg6 {[%clk 0:00:49]}  Qxg6 {[%clk 0:02:38]} 29. Qf4 {[%clk 0:00:45]}  Ba6 {[%clk 0:02:21]} 30. Rcd1 {[%clk 0:00:36]}  bxc3 {[%clk 0:02:12]} 31. bxc3 {[%clk 0:00:29]}  Rab8 {[%clk 0:02:13]} 32. Re3 {[%clk 0:00:18]}  Rb2 {[%clk 0:02:03]} 33. Rh3 {[%clk 0:00:13]}  Kh7 {[%clk 0:02:03]} 34. c4 {[%clk 0:00:11]}  Nd4 {[%clk 0:02:00]} 35. cxd5 {[%clk 0:00:10]}  Ne2+ {[%clk 0:02:00]} 36. Kh2 {[%clk 0:00:10]}  Nxf4 {[%clk 0:02:01]} 37. Be4 {[%clk 0:00:07]}  Rxf2+ {[%clk 0:01:54]} 38. Kg3 {[%clk 0:00:05]}  Nxh3 {[%clk 0:01:53]} 39. Bxg6+ {[%clk 0:00:03]}  Kxg6 {[%clk 0:01:54]} 40. Kxh3 {[%clk 0:00:03]}  Rf3+ {[%clk 0:01:49]} 0-1


[Site "https://www.chess.com"]

[Event "Titled Tuesday Blitz May 24 Early 2022"]
[White "Ferreira, Vitor Hugo Vieira"]
[Black "Sarkar, Justin"]
[WhiteFideId "2119765"]
[BlackFideId "2010011"]
[WhiteElo "2165"]
[BlackElo "2020"]
[Result "0-1"]
[Round "06"]
[TimeControl "180+1"]
[Date "2022.05.25"]
[WhiteClock "0:00:28"]
[BlackClock "0:00:04"]

1. e4 {[%clk 0:03:00]}  e5 {[%clk 0:02:54]} 2. Nf3 {[%clk 0:03:01]}  Nc6 {[%clk 0:02:53]} 3. Bb5 {[%clk 0:03:01]}  a6 {[%clk 0:02:51]} 4. Ba4 {[%clk 0:03:01]}  Nf6 {[%clk 0:02:46]} 5. O-O {[%clk 0:03:01]}  Be7 {[%clk 0:02:46]} 6. Re1 {[%clk 0:03:01]}  b5 {[%clk 0:02:46]} 7. Bb3 {[%clk 0:03:01]}  d6 {[%clk 0:02:46]} 8. c3 {[%clk 0:02:59]}  O-O {[%clk 0:02:45]} 9. d4 {[%clk 0:02:58]}  Bg4 {[%clk 0:02:44]} 10. d5 {[%clk 0:02:58]}  Na5 {[%clk 0:02:42]} 11. Bc2 {[%clk 0:02:58]}  Qc8 {[%clk 0:02:35]} 12. Nbd2 {[%clk 0:02:56]}  c6 {[%clk 0:02:32]} 13. dxc6 {[%clk 0:02:56]}  Qxc6 {[%clk 0:02:25]} 14. Nf1 {[%clk 0:02:55]}  Nc4 {[%clk 0:02:22]} 15. Ne3 {[%clk 0:02:53]}  Nxe3 {[%clk 0:02:18]} 16. Bxe3 {[%clk 0:02:53]}  Rfe8 {[%clk 0:02:11]} 17. h3 {[%clk 0:02:52]}  Bh5 {[%clk 0:02:07]} 18. g4 {[%clk 0:02:51]}  Bg6 {[%clk 0:01:57]} 19. Bg5 {[%clk 0:02:46]}  Nxe4 {[%clk 0:01:45]} 20. Bxe7 {[%clk 0:02:43]}  Rxe7 {[%clk 0:01:45]} 21. Bxe4 {[%clk 0:02:41]}  Bxe4 {[%clk 0:01:44]} 22. Nd2 {[%clk 0:02:29]}  Bd5 {[%clk 0:01:43]} 23. Nf1 {[%clk 0:02:24]}  Be6 {[%clk 0:01:38]} 24. Ne3 {[%clk 0:02:24]}  d5 {[%clk 0:01:33]} 25. Qf3 {[%clk 0:02:23]}  f6 {[%clk 0:01:23]} 26. a4 {[%clk 0:02:22]}  Rd8 {[%clk 0:01:14]} 27. axb5 {[%clk 0:02:20]}  axb5 {[%clk 0:01:14]} 28. Red1 {[%clk 0:02:16]}  Red7 {[%clk 0:01:09]} 29. Ra5 {[%clk 0:02:08]}  Qb6 {[%clk 0:00:47]} 30. Rda1 {[%clk 0:02:08]}  Bf7 {[%clk 0:00:32]} 31. Ra6 {[%clk 0:01:57]}  Qc5 {[%clk 0:00:29]} 32. Nf5 {[%clk 0:01:42]}  d4 {[%clk 0:00:21]} 33. cxd4 {[%clk 0:01:41]}  exd4 {[%clk 0:00:20]} 34. Ra8 {[%clk 0:01:25]}  Bd5 {[%clk 0:00:11]} 35. Rxd8+ {[%clk 0:01:25]}  Rxd8 {[%clk 0:00:11]} 36. Qf4 {[%clk 0:01:25]}  d3 {[%clk 0:00:05]} 37. b4 {[%clk 0:01:20]}  Qf8 {[%clk 0:00:04]} 38. Ra7 {[%clk 0:01:09]}  Bf7 {[%clk 0:00:04]} 39. Qd2 {[%clk 0:01:01]}  Kh8 {[%clk 0:00:04]} 40. Ra3 {[%clk 0:01:00]}  Bc4 {[%clk 0:00:04]} 41. Ra7 {[%clk 0:00:47]}  Qe8 {[%clk 0:00:04]} 42. Nxg7 {[%clk 0:00:44]}  Qe2 {[%clk 0:00:03]} 43. Qh6 {[%clk 0:00:42]}  d2 {[%clk 0:00:04]} 44. Nf5 {[%clk 0:00:31]}  d1=Q+ {[%clk 0:00:04]} 45. Kg2 {[%clk 0:00:29]}  Qf3+ {[%clk 0:00:04]} 46. Kh2 {[%clk 0:00:28]}  Qdh1# {[%clk 0:00:04]} 0-1


[Site "https://www.chess.com"]